fUST/lending_fUST_20250723
["ID","MTS","AMOUNT","RATE_DAILY","PERIOD"]
[374249618,1753254675387,-460.0,0.00022191,2]
[374249619,1753254675396,-473.02,0.00022191,2]
[374249620,1753254675405,-795.21,0.00022191,2]
[374249621,1753254675414,-460.0,0.00022191,2]
[374249622,1753254675423,-151.0,0.000222,10]
[374249623,1753254675432,-533.8,0.00022365,2]
[374249624,1753254675442,-460.0,0.00022365,2]
[374249625,1753254675452,-151.0,0.00022365,7]
[374249626,1753254675461,-151.0,0.00022365,7]
[374249627,1753254675471,-460.0,0.00022365,2]
[374249628,1753254675480,-1496.55,0.00022365,2]
[374249629,1753254675489,-153.222899,0.00022365,7]
[374249630,1753254675498,-693.51,0.00022365,2]
[374249631,1753254675508,-1369.90225841,0.00022383,7]
[374249632,1753254675518,-223.0315306,0.00022419,2]
[374249633,1753254675528,-570.81458004,0.00022463,2]
[374249634,1753254675537,-1871.85,0.00022465,2]
[374249635,1753254675546,-460.0,0.00022465,2]
[374249636,1753254675555,-2065.75,0.00022465,2]
[374249637,1753254675565,-460.0,0.00022465,2]
[374249638,1753254675574,-2886.62,0.00022465,2]
[374249639,1753254675584,-544.69,0.00022465,2]
[374249640,1753254675593,-1538.75,0.00022465,2]
[374249641,1753254675603,-460.0,0.00022465,2]
[374249642,1753254675612,-460.0,0.00022465,2]
[374249643,1753254675621,-1039.56,0.00022465,2]
[374249644,1753254675631,-457.44,0.00022465,2]
[374249645,1753254675640,-553.5,0.00022465,2]
[374249646,1753254675649,-2389.46,0.00022465,2]
[374249647,1753254675659,-468.73,0.00022465,2]
[374249648,1753254675668,-246.45,0.00022465,2]
[374249649,1753254675678,-346.06,0.00022465,2]
[374249650,1753254675687,-460.0,0.00022465,2]
[374249651,1753254675696,-1791.55,0.00022465,2]
[374249652,1753254675705,-2491.45,0.00022465,2]
[374249653,1753254675715,-460.0,0.00022465,2]
[374249654,1753254675724,-460.0,0.00022465,2]
[374249655,1753254675734,-1677.76,0.00022465,2]
[374249656,1753254675743,-3937.54,0.00022465,2]
[374249657,1753254675752,-460.0,0.00022465,2]
[374249658,1753254675762,-514.35,0.00022465,2]
[374249659,1753254675771,-460.0,0.00022465,2]
[374249660,1753254675780,-188.30857997,0.00022465,2]
[374249661,1753254675789,-460.0,0.00022465,2]
[374249662,1753254675799,-460.0,0.00022465,2]
[374249663,1753254675812,-460.0,0.00022465,2]
[374249664,1753254675822,-952.29,0.00022465,2]
[374249665,1753254675831,-1984.23,0.00022465,2]
[374249666,1753254675841,-460.0,0.00022465,2]
[374249667,1753254675850,-460.0,0.00022465,2]
[374249668,1753254675859,-4764.83,0.00022465,2]
[374249669,1753254675868,-460.0,0.00022465,2]
[374249670,1753254675878,-1890.16,0.00022465,2]
[374249671,1753254675887,-460.0,0.00022465,2]
[374249672,1753254675896,-473.02,0.00022465,2]
[374249673,1753254675905,-795.21,0.00022465,2]
[374249674,1753254675914,-460.0,0.00022465,2]
[374249675,1753254675923,-1498.23,0.00022465,2]
[374249676,1753254675932,-525.46,0.00022468,2]
[374249677,1753254675942,-525.46,0.00022568,6]
[374249678,1753254675951,-2157.0,0.0002257,2]
[374249679,1753254675960,-407.0,0.0002257,2]
[374249680,1753254675969,-1369.90225841,0.0002259,7]
[374249681,1753254675979,-533.8,0.00022639,2]
[374249682,1753254675988,-559.02336753,0.00022639,2]
[374249683,1753254675998,-460.0,0.00022639,2]
[374249684,1753254676008,-1496.55,0.00022639,2]
[374249685,1753254676017,-693.51,0.00022639,2]
[374249686,1753254676027,-1040.0,0.00022661,2]
[374249687,1753254676036,-513.33,0.00022662,7]
[374249688,1753254676124,-501.42812235,0.00022664,2]
[374249689,1753254676133,-525.48,0.00022668,5]
[374249690,1753254676144,-612.67,0.00022672,2]
[374249691,1753254676153,-151.0,0.000227,8]
[374249692,1753254676162,-1040.0,0.00022731,2]
[374249693,1753254676172,-660.0,0.00022735,2]
[374249694,1753254676181,-1871.85,0.00022739,2]
[374249695,1753254676191,-460.0,0.00022739,2]
[374249696,1753254676200,-2065.75,0.00022739,2]
[374249697,1753254676210,-460.0,0.00022739,2]
[374249698,1753254676219,-2886.62,0.00022739,2]
[374249699,1753254676228,-544.69,0.00022739,2]
[374249700,1753254676238,-1538.75,0.00022739,2]
[374249701,1753254676248,-460.0,0.00022739,2]
[374249702,1753254676259,-460.0,0.00022739,2]
[374249703,1753254676268,-1039.56,0.00022739,2]
[374249704,1753254676278,-151.0,0.00022739,7]
[374249705,1753254676287,-553.5,0.00022739,2]
[374249706,1753254676297,-2389.46,0.00022739,2]
[374249707,1753254676307,-468.73,0.00022739,2]
[374249708,1753254676316,-460.0,0.00022739,2]
[374249709,1753254676325,-153.601296,0.00022739,7]
[374249710,1753254676335,-1791.55,0.00022739,2]
[374249711,1753254676344,-2491.45,0.00022739,2]
[374249712,1753254676353,-475.67,0.00022739,2]
[374249713,1753254676363,-460.0,0.00022739,2]
[374249714,1753254676373,-1677.76,0.00022739,2]
[374249715,1753254676382,-3937.54,0.00022739,2]
[374249716,1753254676391,-460.0,0.00022739,2]
[374249717,1753254676401,-514.35,0.00022739,2]
[374249718,1753254676410,-460.0,0.00022739,2]
[374249719,1753254676419,-460.0,0.00022739,2]
[374249720,1753254676429,-460.0,0.00022739,2]
[374249721,1753254676438,-460.0,0.00022739,2]
[374249722,1753254676448,-952.29,0.00022739,2]
[374249723,1753254676457,-1984.23,0.00022739,2]
[374249724,1753254676467,-460.0,0.00022739,2]
[374249725,1753254676476,-460.0,0.00022739,2]
[374249726,1753254676485,-4764.83,0.00022739,2]
[374249727,1753254676495,-1890.16,0.00022739,2]
[374249728,1753254676505,-460.0,0.00022739,2]
[374249729,1753254676516,-795.21,0.00022739,2]
[374249730,1753254676526,-473.02,0.00022739,2]
[374249731,1753254676535,-482.71421361,0.00022739,2]
[374249732,1753254676544,-513.33,0.00022762,2]
[374249733,1753254676554,-612.6851439,0.00022772,4]
[374249734,1753254676563,-1369.90225841,0.00022797,7]
[374249735,1753254676573,-513.33,0.00022862,5]
[374249736,1753254676582,-533.8,0.00022913,2]
[374249737,1753254676592,-460.0,0.00022913,2]
[374249738,1753254676601,-1496.55,0.00022913,2]
[374249739,1753254676611,-693.51,0.00022913,2]
[374249740,1753254676621,-513.33,0.00022962,6]
[374249741,1753254676630,-570.81458004,0.00022992,2]
[374249742,1753254676640,-160.0,0.00023,3]
[374249743,1753254676649,-152.852934,0.00023,7]
[374249744,1753254676660,-274.695455,0.00023,7]
[374249745,1753254676670,-274.695455,0.00023,7]
[374249746,1753254676679,-151.0,0.00023,7]
[374249747,1753254676688,-151.0,0.00023,7]
[374249748,1753254676699,-151.0,0.00023,7]
[374249749,1753254676709,-526.15909479,0.00023,3]
[374249750,1753254676718,-840.06856235,0.00023,3]
[374249751,1753254676728,-160.0,0.00023,3]
[374249752,1753254676737,-160.0,0.00023,3]
[374249753,1753254676746,-1369.90225841,0.00023003,8]
[374249754,1753254676759,-1871.85,0.00023013,2]
[374249755,1753254676768,-460.0,0.00023013,2]
[374249756,1753254676777,-2065.75,0.00023013,2]
[374249757,1753254676787,-460.0,0.00023013,2]
[374249758,1753254676796,-2886.62,0.00023013,2]
[374249759,1753254676811,-544.69,0.00023013,2]
[374249760,1753254676825,-151.827683,0.00023013,7]
[374249761,1753254676835,-1538.75,0.00023013,2]
[374249762,1753254676844,-151.0,0.00023013,7]
[374249763,1753254676853,-151.0,0.00023013,7]
[374249764,1753254676862,-153.789863,0.00023013,7]
[374249765,1753254676872,-151.0,0.00023013,7]
[374249766,1753254676881,-151.0,0.00023013,7]
[374249767,1753254676891,-151.0,0.00023013,7]
[374249768,1753254676901,-460.0,0.00023013,2]
[374249769,1753254676910,-319.01,0.00023013,2]
[374249770,1753254676919,-1039.56,0.00023013,2]
[374249771,1753254676928,-151.0,0.00023013,7]
[374249772,1753254676937,-553.5,0.00023013,2]
[374249773,1753254676947,-2389.46,0.00023013,2]
[374249774,1753254676956,-468.73,0.00023013,2]
[374249775,1753254676967,-161.24,0.00023013,2]
[374249776,1753254676976,-1791.55,0.00023013,2]
[374249777,1753254676986,-2491.45,0.00023013,2]
[374249778,1753254676997,-460.0,0.00023013,2]
[374249779,1753254677009,-1677.76,0.00023013,2]
[374249780,1753254677019,-3937.54,0.00023013,2]
[374249781,1753254677028,-460.0,0.00023013,2]
[374249782,1753254677038,-514.35,0.00023013,2]
[374249783,1753254677047,-590.05351395,0.00023013,2]
[374249784,1753254677056,-460.0,0.00023013,2]
[374249785,1753254677066,-460.0,0.00023013,2]
[374249786,1753254677076,-460.0,0.00023013,2]
[374249787,1753254677085,-952.29,0.00023013,2]
[374249788,1753254677095,-1984.23,0.00023013,2]
[374249789,1753254677112,-460.0,0.00023013,2]
[374249790,1753254677124,-460.0,0.00023013,2]
[374249791,1753254677134,-4764.83,0.00023013,2]
[374249792,1753254677144,-1890.16,0.00023013,2]
[374249793,1753254677154,-460.0,0.00023013,2]
[374249794,1753254677163,-473.02,0.00023013,2]
[374249795,1753254677174,-795.21,0.00023013,2]
[374249796,1753254677184,-164.0,0.00023014,7]
[374249797,1753254677194,-513.33,0.00023062,2]
[374249798,1753254677203,-160.0,0.00023074,3]
[374249799,1753254677214,-1040.0,0.00023122,2]
[374249800,1753254677223,-513.33,0.00023162,5]
[374249801,1753254677233,-533.8,0.00023187,2]
[374249802,1753254677242,-460.0,0.00023187,2]
[374249803,1753254677252,-1496.55,0.00023187,2]
[374249804,1753254677263,-693.51,0.00023187,2]
[374249805,1753254677272,-151.0,0.000232,6]
[374249806,1753254677282,-1369.90225841,0.0002321,8]
[374249807,1753254677292,-155.554218,0.0002322,2]
[374249808,1753254677301,-1040.0,0.00023242,2]
[374249809,1753254677311,-760.0,0.00023283,2]
[374249810,1753254677321,-1871.85,0.00023287,2]
[374249811,1753254677330,-460.0,0.00023287,2]
[374249812,1753254677340,-2065.75,0.00023287,2]
[374249813,1753254677349,-526.42,0.00023287,2]
[374249814,1753254677359,-2886.62,0.00023287,2]
[374249815,1753254677368,-544.69,0.00023287,2]
[374249816,1753254677378,-1538.75,0.00023287,2]
[374249817,1753254677388,-460.0,0.00023287,2]
[374249818,1753254677397,-151.0,0.00023287,7]
[374249819,1753254677406,-1039.56,0.00023287,2]
[374249820,1753254677416,-553.5,0.00023287,2]
[374249821,1753254677426,-2389.46,0.00023287,2]
[374249822,1753254677435,-468.73,0.00023287,2]
[374249823,1753254677445,-151.0,0.00023287,7]
[374249824,1753254677454,-175.910446,0.00023287,7]
[374249825,1753254677464,-1791.55,0.00023287,2]
[374249826,1753254677473,-2491.45,0.00023287,2]
[374249827,1753254677483,-151.0,0.00023287,7]
[374249828,1753254677493,-151.0,0.00023287,7]
[374249829,1753254677502,-460.0,0.00023287,2]
[374249830,1753254677515,-1677.76,0.00023287,2]
[374249831,1753254677524,-3937.54,0.00023287,2]
[374249832,1753254677533,-460.0,0.00023287,2]
[374249833,1753254677542,-514.35,0.00023287,2]
[374249834,1753254677552,-188.847154,0.00023287,7]
[374249835,1753254677561,-188.847154,0.00023287,7]
[374249836,1753254677571,-460.0,0.00023287,2]
[374249837,1753254677580,-460.0,0.00023287,2]
[374249838,1753254677590,-460.0,0.00023287,2]
[374249839,1753254677599,-952.29,0.00023287,2]
[374249840,1753254677608,-1984.23,0.00023287,2]
[374249841,1753254677736,-460.0,0.00023287,2]
[374249842,1753254677745,-213.06,0.00023287,2]
[374249843,1753254677755,-4764.83,0.00023287,2]
[374249844,1753254677766,-151.0,0.00023287,7]
[374249845,1753254677775,-1890.16,0.00023287,2]
[374249846,1753254677784,-364.48,0.00023287,2]
[374249847,1753254677794,-473.02,0.00023287,2]
[374249848,1753254677806,-795.21,0.00023287,2]
[374249849,1753254677815,-13527.88,0.000233,2]
[374249850,1753254677824,-1040.0,0.00023338,2]
[374249851,1753254677834,-648.0,0.00023342,2]
[374249852,1753254677843,-168.0,0.00023371,2]
[374249853,1753254677853,-1040.0,0.00023387,2]
[374249854,1753254677862,-1369.90225841,0.00023417,9]
[374249855,1753254677872,-533.8,0.00023461,2]
[374249856,1753254677882,-460.0,0.00023461,2]
[374249857,1753254677891,-1496.55,0.00023461,2]
[374249858,1753254677901,-693.51,0.00023461,2]
[374249859,1753254677910,-155.754853,0.00023479,2]
[374249860,1753254677919,-155.754853,0.00023479,2]
[374249861,1753254677928,-8125.27,0.000235,7]
[374249862,1753254677938,-570.81458004,0.00023521,2]
[374249863,1753254677947,-1871.85,0.00023561,2]
[374249864,1753254677956,-460.0,0.00023561,2]
[374249865,1753254677965,-2065.75,0.00023561,2]
[374249866,1753254677975,-2886.62,0.00023561,2]
[374249867,1753254677984,-544.69,0.00023561,2]
[374249868,1753254677994,-1538.75,0.00023561,2]
[374249869,1753254678003,-460.0,0.00023561,2]
[374249870,1753254678014,-1039.56,0.00023561,2]
[374249871,1753254678024,-553.5,0.00023561,2]
[374249872,1753254678034,-2389.46,0.00023561,2]
[374249873,1753254678043,-468.73,0.00023561,2]
[374249874,1753254678054,-1791.55,0.00023561,2]
[374249875,1753254678063,-2491.45,0.00023561,2]
[374249876,1753254678073,-460.0,0.00023561,2]
[374249877,1753254678083,-1677.76,0.00023561,2]
[374249878,1753254678092,-3937.54,0.00023561,2]
[374249879,1753254678102,-460.0,0.00023561,2]
[374249880,1753254678112,-514.35,0.00023561,2]
[374249881,1753254678121,-460.0,0.00023561,2]
[374249882,1753254678131,-460.0,0.00023561,2]
[374249883,1753254678140,-460.0,0.00023561,2]
[374249884,1753254678150,-952.29,0.00023561,2]
[374249885,1753254678164,-1984.23,0.00023561,2]
[374249886,1753254678175,-460.0,0.00023561,2]
[374249887,1753254678186,-4764.83,0.00023561,2]
[374249888,1753254678196,-152.92453,0.00023561,7]
[374249889,1753254678206,-1890.16,0.00023561,2]
[374249890,1753254678216,-473.02,0.00023561,2]
[374249891,1753254678226,-151.0,0.00023561,7]
[374249892,1753254678236,-795.21,0.00023561,2]
[374249893,1753254678246,-160.0,0.0002359,4]
[374249894,1753254678255,-652.59,0.000236,7]
[374249895,1753254678266,-642.0,0.000236,2]
[374249896,1753254678276,-155.754853,0.00023616,2]
[374249897,1753254678286,-1369.90225841,0.00023624,9]
[374249898,1753254678295,-150.0,0.00023649,2]
[374249899,1753254678305,-324.45059861,0.00023663,2]
[374249900,1753254678315,-151.0,0.000237,8]
[374249901,1753254678325,-168.0,0.00023706,2]
[374249902,1753254678334,-151.0,0.00023735,7]
[374249903,1753254678343,-151.0,0.00023735,2]
[374249904,1753254678353,-151.0,0.00023735,7]
[374249905,1753254678362,-358.944216,0.00023735,7]
[374249906,1753254678372,-358.944216,0.00023735,7]
[374249907,1753254678381,-533.8,0.00023735,2]
[374249908,1753254678391,-347.62,0.00023735,2]
[374249909,1753254678401,-1496.55,0.00023735,2]
[374249910,1753254678410,-693.51,0.00023735,2]
[374249911,1753254678420,-155.754853,0.00023753,2]
[374249912,1753254678429,-155.754853,0.00023781,2]
[374249913,1753254678439,-231.28369723,0.00023788,2]
[374249914,1753254678448,-168.0,0.00023829,2]
[374249915,1753254678458,-860.0,0.00023831,2]
[374249916,1753254678467,-1369.90225841,0.00023831,10]
[374249917,1753254678477,-1871.85,0.00023835,2]
[374249918,1753254678486,-460.0,0.00023835,2]
[374249919,1753254678495,-2065.75,0.00023835,2]
[374249920,1753254678504,-200.35774505,0.00023835,2]
[374249921,1753254678515,-500.0,0.00023835,2]
[374249922,1753254678525,-151.55352173,0.00023835,2]
[374249923,1753254678534,-151.0,0.00023835,2]
[374249924,1753254678544,-152.01990763,0.00023835,2]
[374249925,1753254678553,-151.0,0.00023835,2]
[374249926,1753254678562,-2886.62,0.00023835,2]
[374249927,1753254678572,-544.69,0.00023835,2]
[374249928,1753254678582,-1538.75,0.00023835,2]
[374249929,1753254678591,-151.0,0.00023835,7]
[374249930,1753254678600,-460.0,0.00023835,2]
[374249931,1753254678610,-1039.56,0.00023835,2]
[374249932,1753254678619,-553.5,0.00023835,2]
[374249933,1753254678629,-2389.46,0.00023835,2]
[374249934,1753254678639,-468.73,0.00023835,2]
[374249935,1753254678648,-1791.55,0.00023835,2]
[374249936,1753254678658,-2491.45,0.00023835,2]
[374249937,1753254678668,-154.91259613,0.00023835,2]
[374249938,1753254678677,-500.0,0.00023835,2]
[374249939,1753254678687,-151.0,0.00023835,2]
[374249940,1753254678696,-152.44516142,0.00023835,2]
[374249941,1753254678706,-151.9231916,0.00023835,2]
[374249942,1753254678715,-500.0,0.00023835,2]
[374249943,1753254678725,-151.0,0.00023835,2]
[374249944,1753254678735,-151.82948637,0.00023835,2]
[374249945,1753254678745,-198.69371496,0.00023835,2]
[374249946,1753254678755,-151.0,0.00023835,2]
[374249947,1753254678766,-152.37951896,0.00023835,2]
[374249948,1753254678775,-151.0,0.00023835,2]
[374249949,1753254678785,-584.92,0.00023835,2]
[374249950,1753254678795,-1677.76,0.00023835,2]
[374249951,1753254678808,-3937.54,0.00023835,2]
[374249952,1753254678817,-460.0,0.00023835,2]
[374249953,1753254678827,-514.35,0.00023835,2]
[374249954,1753254678836,-460.0,0.00023835,2]
[374249955,1753254678846,-460.0,0.00023835,2]
[374249956,1753254678856,-342.89,0.00023835,2]
[374249957,1753254678865,-952.29,0.00023835,2]
[374249958,1753254678875,-251.052736,0.00023835,7]
[374249959,1753254678884,-251.052736,0.00023835,7]
[374249960,1753254678894,-151.53812668,0.00023835,2]
[374249961,1753254678904,-151.57682841,0.00023835,2]
[374249962,1753254678913,-151.0,0.00023835,2]
[374249963,1753254678923,-152.8266766,0.00023835,2]
[374249964,1753254678933,-151.28823923,0.00023835,2]
[374249965,1753254678943,-151.99926992,0.00023835,2]
[374249966,1753254678952,-1984.23,0.00023835,2]
[374249967,1753254678962,-199.72036611,0.00023835,2]
[374249968,1753254678972,-151.15841428,0.00023835,2]
[374249969,1753254678981,-460.0,0.00023835,2]
[374249970,1753254678990,-152.52686713,0.00023835,2]
[374249971,1753254678999,-500.0,0.00023835,2]
[374249972,1753254679010,-151.0,0.00023835,2]
[374249973,1753254679020,-500.0,0.00023835,2]
[374249974,1753254679029,-4764.83,0.00023835,2]
[374249975,1753254679038,-1890.16,0.00023835,2]
[374249976,1753254679048,-473.02,0.00023835,2]
[374249977,1753254679058,-795.21,0.00023835,2]
[374249978,1753254679068,-675.6,0.00023838,2]
[374249979,1753254679080,-150.129,0.00023842,2]
[374249980,1753254679089,-155.754853,0.0002389,2]
[374249981,1753254679189,-1040.0,0.00023897,2]
[374249982,1753254679200,-572.96705329,0.000239,2]
[374249983,1753254679210,-155.554218,0.00023922,2]
[374249984,1753254679220,-155.554219,0.00023922,2]
[374249985,1753254679230,-526.15909479,0.00024,7]
[374249986,1753254679239,-160.0,0.00024,7]
[374249987,1753254679249,-160.0,0.00024,7]
[374249988,1753254679261,-198.08271,0.00024003,8]
[374249989,1753254679271,-533.8,0.00024009,2]
[374249990,1753254679280,-1496.55,0.00024009,2]
[374249991,1753254679290,-693.51,0.00024009,2]
[374249992,1753254679299,-1040.0,0.00024013,2]
[374249993,1753254679308,-506.80993914,0.00024027,30]
[374249994,1753254679318,-155.754853,0.00024027,2]
[374249995,1753254679328,-1369.90225841,0.00024038,10]
[374249996,1753254679337,-501.55083001,0.00024041,9]
[374249997,1753254679347,-570.81458004,0.0002405,2]
[374249998,1753254679357,-160.0,0.00024106,5]
[374249999,1753254679368,-500.0,0.00024109,2]
[374250000,1753254679377,-151.0,0.00024109,2]
[374250001,1753254679387,-151.0,0.00024109,2]
[374250002,1753254679398,-500.0,0.00024109,2]
[374250003,1753254679408,-151.0,0.00024109,2]
[374250004,1753254679417,-500.0,0.00024109,2]
[374250005,1753254679427,-151.0,0.00024109,2]
[374250006,1753254679437,-263.74512944,0.00024109,2]
[374250007,1753254679446,-460.82549313,0.00024109,2]
[374250008,1753254679456,-500.0,0.00024109,2]
[374250009,1753254679465,-1871.85,0.00024109,2]
[374250010,1753254679474,-535.5919367,0.00024109,2]
[374250011,1753254679484,-2065.75,0.00024109,2]
[374250012,1753254679493,-2886.62,0.00024109,2]
[374250013,1753254679502,-544.69,0.00024109,2]
[374250014,1753254679515,-1538.75,0.00024109,2]
[374250015,1753254679525,-460.0,0.00024109,2]
[374250016,1753254679534,-1039.56,0.00024109,2]
[374250017,1753254679543,-553.5,0.00024109,2]
[374250018,1753254679552,-2389.46,0.00024109,2]
[374250019,1753254679562,-468.73,0.00024109,2]
[374250020,1753254679572,-1791.55,0.00024109,2]
[374250021,1753254679583,-2491.45,0.00024109,2]
[374250022,1753254679593,-1677.76,0.00024109,2]
[374250023,1753254679602,-3937.54,0.00024109,2]
[374250024,1753254679612,-460.0,0.00024109,2]
[374250025,1753254679622,-514.35,0.00024109,2]
[374250026,1753254679632,-460.0,0.00024109,2]
[374250027,1753254679643,-496.109884,0.00024109,2]
[374250028,1753254679652,-952.29,0.00024109,2]
[374250029,1753254679667,-151.0,0.00024109,7]
[374250030,1753254679676,-1984.23,0.00024109,2]
[374250031,1753254679685,-151.0,0.00024109,7]
[374250032,1753254679695,-460.0,0.00024109,2]
[374250033,1753254679703,-4764.83,0.00024109,2]
[374250034,1753254679713,-1890.16,0.00024109,2]
[374250035,1753254679723,-473.02,0.00024109,2]
[374250036,1753254679732,-795.21,0.00024109,2]
[374250037,1753254679741,-155.754853,0.0002411,2]
[374250038,1753254679751,-500.0,0.00024126,2]
[374250039,1753254679765,-500.0,0.00024136,2]
[374250040,1753254679774,-151.0,0.00024155,7]
[374250041,1753254679783,-151.0,0.00024155,7]
[374250042,1753254679795,-155.14035221,0.00024164,3]
[374250043,1753254679808,-155.754853,0.00024164,2]
[374250044,1753254679824,-1369.90225841,0.00024245,10]
[374250045,1753254679844,-533.8,0.00024283,2]
[374250046,1753254679865,-151.0,0.00024283,7]
[374250047,1753254679885,-151.0,0.00024283,7]
[374250048,1753254679906,-1496.55,0.00024283,2]
[374250049,1753254679925,-693.51,0.00024283,2]
[374250050,1753254679945,-155.754853,0.00024301,2]
[374250051,1753254679961,-500.94082614,0.00024344,9]
[374250052,1753254679978,-1040.0,0.00024348,2]
[374250053,1753254679998,-960.0,0.00024379,2]
[374250054,1753254680022,-403.79307641,0.00024383,2]
[374250055,1753254680043,-151.0,0.00024383,2]
[374250056,1753254680062,-151.0,0.00024383,2]
[374250057,1753254680079,-500.0,0.00024383,2]
[374250058,1753254680095,-199.04954172,0.00024383,2]
[374250059,1753254680111,-500.0,0.00024383,2]
[374250060,1753254680128,-151.0,0.00024383,2]
[374250061,1753254680143,-502.92601288,0.00024383,2]
[374250062,1753254680157,-1871.85,0.00024383,2]
[374250063,1753254680172,-2065.75,0.00024383,2]
[374250064,1753254680188,-2886.62,0.00024383,2]
[374250065,1753254680203,-544.69,0.00024383,2]
[374250066,1753254680217,-1538.75,0.00024383,2]
[374250067,1753254680231,-460.0,0.00024383,2]
[374250068,1753254680245,-1039.56,0.00024383,2]
[374250069,1753254680259,-553.5,0.00024383,2]
[374250070,1753254680276,-2389.46,0.00024383,2]
[374250071,1753254680290,-468.73,0.00024383,2]
[374250072,1753254680304,-1791.55,0.00024383,2]
[374250073,1753254680318,-2491.45,0.00024383,2]
[374250074,1753254680331,-1677.76,0.00024383,2]
[374250075,1753254680345,-3937.54,0.00024383,2]
[374250076,1753254680358,-460.0,0.00024383,2]
[374250077,1753254680372,-514.35,0.00024383,2]
[374250078,1753254680386,-176.93,0.00024383,2]
[374250079,1753254680399,-952.29,0.00024383,2]
[374250080,1753254680412,-1984.23,0.00024383,2]
[374250081,1753254680427,-460.0,0.00024383,2]
[374250082,1753254680441,-4764.83,0.00024383,2]
[374250083,1753254680454,-1890.16,0.00024383,2]
[374250084,1753254680468,-473.02,0.00024383,2]
[374250085,1753254680483,-795.21,0.00024383,2]
[374250086,1753254680498,-499.3,0.00024384,2]
[374250087,1753254680515,-2011.12738571,0.000244,2]
[374250088,1753254680528,-151.0,0.000244,7]
[374250089,1753254680542,-155.754853,0.00024411,2]
[374250090,1753254680556,-1369.90225841,0.00024452,11]
[374250091,1753254680569,-500.0,0.00024454,2]
[374250092,1753254680583,-155.754853,0.00024466,2]
[374250093,1753254680598,-500.0,0.00024487,2]
[374250094,1753254680613,-141047.91366443,0.000245,4]
[374250095,1753254680626,-160.0,0.000245,7]
[374250096,1753254680639,-231.11583447,0.000245,7]
[374250097,1753254680653,-142084.17470308,0.000245,4]
[374250098,1753254680667,-750.72888627,0.000245,3]
[374250099,1753254680681,-951.22,0.000245,2]
[374250100,1753254680695,-151.0,0.000245,7]
[374250101,1753254680710,-151.0,0.000245,7]
[374250102,1753254680723,-152.11147,0.000245,7]
[374250103,1753254680736,-151.0,0.000245,7]
[374250104,1753254680750,-151.0,0.000245,7]
[374250105,1753254680764,-245.285082,0.000245,7]
[374250106,1753254680777,-151.0,0.000245,7]
[374250107,1753254680791,-151.855467,0.000245,7]
[374250108,1753254680813,-152.797318,0.000245,7]
[374250109,1753254680947,-151.0,0.000245,7]
[374250110,1753254680963,-151.0,0.000245,7]
[374250111,1753254680978,-151.0,0.000245,7]
[374250112,1753254680987,-151.0,0.000245,7]
[374250113,1753254680997,-151.0,0.000245,7]
[374250114,1753254681006,-151.420775,0.000245,7]
[374250115,1753254681016,-151.0,0.000245,7]
[374250116,1753254681025,-151.0,0.000245,7]
[374250117,1753254681035,-151.0,0.000245,7]